Cogmind - Beta 14 @@@ ROGUE MODE // 2024.11.21 @ 01:08:59 Player: Kate+Gabe4evr Result: Destroyed by IO-HFV(R) with Subdweller Laser Performance ------------- Evolutions (0) 0 Regions Visited (2) 400 Robots Destroyed (15) 75 Value Destroyed (290) 290 Prototype IDs (0) 0 Alien Tech Used (0) 0 Bonus (0) 0 TOTAL SCORE: 765 Bonus ------- None Cogmind --------- Core Integrity 0/250 Matter 292/300 Energy 100/100 System Corruption 0% Temperature Cool (6) Movement Core (1350) Ox26 Location -10/Subcaves Parts ------- > --- POWER (1) -------- (None) > --- PROPULSION (2) --- (None) > --- UTILITY (2) ------ Huge Storage Unit > --- WEAPON (2) ------- (None) > --- INVENTORY (25) --- Ion Engine Wheel Wheel Compact Wheel Small Storage Unit Huge Storage Unit Core Shielding Peak State ------------ > --- POWER ------------ Ion Engine > --- PROPULSION ------- Compact Wheel Compact Wheel > --- UTILITY ---------- Improved Heat Sink Huge Storage Unit > --- WEAPON ----------- Medium Laser Flamer > --- INVENTORY -------- Ion Engine Wheel Wheel Compact Wheel Small Storage Unit Huge Storage Unit Core Shielding [Rating: 10] Favorites ----------- Power Ion Engine Engine Ion Engine Propulsion Wheel Wheel Wheel Utility Improved Heat Sink Device Improved Heat Sink Storage Huge Storage Unit Weapon Medium Laser Energy Gun Medium Laser Ballistic Gun Light Assault Rifle Special Weapon Flamer Build | -11 -10 -10 ------- Run | Yrd Mat Sub Slots Evolved . | . . . Power . | . . . Propulsion . | . . . Utility . | . . . Weapon . | . . . Parts Attached 16 | 6 7 3 Power 3 | 1 2 . Engine 3 | 1 2 . Core . | . . . Reactor . | . . . Propulsion 6 | 2 2 2 Treads . | . . . Leg . | . . . Wheel 6 | 2 2 2 Hover . | . . . Flight . | . . . Utility 3 | 1 2 . Device 1 | . 1 . Storage 2 | 1 1 . Processor . | . . . Hackware . | . . . Protection . | . . . Artifact . | . . . Weapon 4 | 2 1 1 Energy Gun 2 | 1 1 . Energy Cannon . | . . . Ballistic Gun 1 | 1 . . Ballistic Cannon . | . . . Launcher . | . . . Special Weapon 1 | . . 1 Impact Weapon . | . . . Slashing Weapon . | . . . Piercing Weapon . | . . . Special Melee Weapon . | . . . Unidentified Prototypes . | . . . Parts Lost 10 | . 2 8 Power 2 | . 1 1 Propulsion 3 | . . 3 Utility 1 | . . 1 Weapon 4 | . 1 3 Highest Loss Streak 6 | . 1 6 To Critical Strikes . | . . . Average Slot Usage (%) 94 | . 99 80 Engine 13 | . 13 12 Wheel 26 | . 28 23 Device 13 | . 13 13 Storage 14 | . 14 14 Energy Gun 13 | . 14 11 Ballistic Gun 11 | . 14 3 Peak Build Rating 10 | 6 9 10 Average Rating 8 | 4 8 7 On Entrance 5 | . 6 9 Naked Turns . | . . . Heaviest Build 90 | 13 89 90 Greatest Support 32 | 20 26 32 Greatest Overweight (x) 5 | . 4 5 Average Overweight (x) 1 | . . 2 Largest Inventory Capacity 25 | 8 25 25 Average Capacity 20 | 6 19 25 Most Carried 8 | 2 8 8 Average Carried 6 | . 6 7 Final Capacity 25 | 8 25 25 Final Carried 8 | 2 8 7 Class Distribution -------------------- 100% | Mutant Dominant Class ---------------- Mutant | -10/Materials Mutant | -10/Subcaves Resources | -11 -10 -10 ----------- Run | Yrd Mat Sub Matter Collected 311 | 237 74 . Remotely . | . . . Salvage Created 569 | . 524 45 Parts 29 | . 25 4 Haulers Intercepted . | . . . Recyclers Shooed 1 | . 1 . Parts Field Recycled . | . . . Retrieved Matter . | . . . Parts Self-Destructed 12 | . . 12 Prevented . | . . . Kills | -11 -10 -10 ------- Run | Yrd Mat Sub Combat Hostiles Destroyed 11 | . 8 3 Guns 11 | . 8 3 Classes Destroyed 4 | . 4 . Recycler 3 | . 3 . Watcher 1 | . 1 . Swarmer 6 | . 3 3 Grunt 5 | . 5 . Best Kill Streak 6 | . 6 3 Combat Bots Only 3 | . 3 3 Max Kills in Single Turn 2 | . 2 1 Gunslinging . | . . . Exploded . | . . . Melee . | . . . Uniques/NPCs Destroyed . | . . . Combat | -11 -10 -10 -------- Run | Yrd Mat Sub Hostile Shots Fired 92 | . 40 52 Missed 26 | . 9 17 Damage Taken 949 | . 355 594 Core 261 | . 67 194 Absorbed by Shields . | . . . Core Remaining (%) 100 | 100 . . Volleys Fired 44 | . 32 12 Largest 2 | . 2 2 Hottest 150 | . 70 150 Shots Fired 79 | . 61 18 Gun 73 | . 61 12 Cannon . | . . . Launcher . | . . . Special 6 | . . 6 Kinetic 35 | . 32 3 Thermal 31 | . 16 15 Explosive . | . . . Electromagnetic 13 | . 13 . Robot Hit Streak 15 | . 15 10 Robot Miss Streak 3 | . 2 3 Penetration Max . | . . . Secondary Targets 1 | . 1 . Max Gunslinging Chain 1 | . 1 . Shots Hit Robots 60 | . 46 14 Core Hits 28 | . 23 5 Critical Kills 1 | . 1 . Critical Parts Destroyed 1 | . 1 . Critical Strikes 3 | . 3 . Burn 1 | . 1 . Destroy 2 | . 2 . Melee Attacks . | . . . Impact . | . . . Slashing . | . . . Piercing . | . . . Sneak Attacks . | . . . Combat Hostiles . | . . . Follow-up Attacks . | . . . Damage Inflicted 914 | . 721 193 Guns 616 | . 521 95 Cannons . | . . . Explosions 200 | . 200 . Melee . | . . . Ramming 33 | . . 33 Kinetic 227 | . 207 20 Thermal 503 | . 363 140 Explosive . | . . . Electromagnetic 151 | . 151 . Impact . | . . . Slashing . | . . . Piercing . | . . . Highest Corruption . | . . . Average Corruption . | . . . Corruption Purged . | . . . Corruption Blocked . | . . . Overload Shots . | . . . Overflow Damage . | . . . Projectiles . | . . . Explosions . | . . . Melee . | . . . Knockbacks . | . . . Impact . | . . . Kinetic . | . . . Secondary . | . . . Self-Inflicted Damage 15 | . . 15 Shots . | . . . Rammed 7 | . . 7 Targets Rammed 7 | . . 7 Kicked . | . . . Crushed . | . . . Highest Temperature 70 | . 70 . Average Temperature 14 | . 14 . Received Heat Transfer 318 | . 144 174 Siege Activations . | . . . Robots Corrupted . | . . . Combat Hostiles . | . . . Parts Fried 1 | . 1 . Impact Corruptions . | . . . Robots Melted . | . . . Combat Hostiles . | . . . Parts Melted . | . . . Heat Transferred 1557 | . 855 702 Parts Sabotaged . | . . . Parts Stolen . | . . . Parts Stripped . | . . . Power Chain Reactions 2 | . 2 . Alert | -11 -10 -10 ------- Run | Yrd Mat Sub Peak Influence 297 | . 297 . Initial . | . . . Average 125 | . 133 . Maximum Alert Level 1 | . 1 . Low Security (%) 74 | 100 73 . Level 1 25 | . 26 . Level 2 . | . . . Level 3 . | . . . Level 4 . | . . . Level 5 . | . . . High Security . | . . . Max Security . | . . . Squads Dispatched 3 | . 3 . Investigation 1 | . 1 . Extermination . | . . . Reinforcement 2 | . 2 . Assault . | . . . Garrison . | . . . Intercept . | . . . Searches Triggered . | . . . Construction Impeded . | . . . Haulers Reinforced . | . . . Active Scanning Responses . | . . . Cargo Convoy Interrupts . | . . . Stealth | -11 -10 -10 --------- Run | Yrd Mat Sub Distress Signals 2 | . 2 . Communications Jammed . | . . . Distress Signals . | . . . Times Spotted 22 | . 15 7 Peak Tracking Total 6 | . 4 6 Tactical Retreats 1 | . . 1 Traps | -11 -10 -10 ------- Run | Yrd Mat Sub Traps Triggered 1 | . 1 . Indirectly . | . . . Trap Hack Attempts . | . . . Triggered . | . . . Disarmed . | . . . Reprogrammed . | . . . Reused . | . . . Traps Extracted . | . . . Installed . | . . . Triggered . | . . . Machines | -11 -10 -10 ---------- Run | Yrd Mat Sub Machines Disabled . | . . . Max in Single Turn . | . . . Machines Repaired . | . . . Machines Dismantled . | . . . Machines Sabotaged . | . . . Overloaded Fab Kills . | . . . Hacking | -11 -10 -10 --------- Run | Yrd Mat Sub Machines Accessed . | . . . Terminals . | . . . Fabricators . | . . . Repair Stations . | . . . Recycling Units . | . . . Scanalyzers . | . . . Garrison Access . | . . . Total Hacks . | . . . Successful . | . . . Failed . | . . . Catastrophic . | . . . Database Lockouts . | . . . Manual . | . . . Terminals . | . . . Fabricators . | . . . Repair Stations . | . . . Recycling Units . | . . . Scanalyzers . | . . . Garrison Access . | . . . Terminal Hacks . | . . . Fabricator Hacks . | . . . Repair Station Hacks . | . . . Recycling Unit Hacks . | . . . Scanalyzer . | . . . Garrison Access Hacks . | . . . Unauthorized Hacks . | . . . Terminals . | . . . Fabricators . | . . . Repair Stations . | . . . Recycling Units . | . . . Scanalyzers . | . . . Garrison Access . | . . . Data Cores Recovered . | . . . Used . | . . . Hacking Detections . | . . . Full Trace Events . | . . . Feedback Events . | . . . Feedback Blocked . | . . . Robot Schematics Acquired . | . . . Robots Built . | . . . Authchips . | . . . Time . | . . . Total Robot Build Rating . | . . . Part Schematics Acquired . | . . . Parts Built . | . . . Authchips . | . . . Time . | . . . Total Part Build Rating . | . . . Parts Repaired . | . . . Time . | . . . Parts Recycled . | . . . Recycled Matter . | . . . Retrieved Matter . | . . . Retrieved Components . | . . . Parts Scanalyzed . | . . . Part Schematics Acquired . | . . . Parts Damaged . | . . . Bothacking | -11 -10 -10 ------------ Run | Yrd Mat Sub Used RIF Installer . | . . . Robots Hacked . | . . . Non-combat . | . . . Combat . | . . . Robot Hacks Applied . | . . . Relay Couplers Released . | . . . Fabnet Peak Effective % . | . . . Robots Rewired . | . . . Allies Hacked . | . . . Hacks Repelled . | . . . Allies | -11 -10 -10 -------- Run | Yrd Mat Sub Total Allies . | . . . Largest Group . | . . . Highest-Rated Group . | . . . Highest-Rated Ally . | . . . Total Orders . | . . . Ally Attacks . | . . . Total Damage . | . . . Kills . | . . . Allies Corrupted . | . . . Allies Melted . | . . . Intel | -11 -10 -10 ------- Run | Yrd Mat Sub Robot Analysis Total . | . . . Derelict Logs Recovered 1 | . . 1 Drone Launches . | . . . Drone Recoveries . | . . . Exploration | -11 -10 -10 ------------- Run | Yrd Mat Sub Turns Passed 1272 | 53 935 284 Spaces Moved 529 | 54 327 148 Core 3 | 3 . . Treads . | . . . Legs . | . . . Wheels 526 | 51 327 148 Hover . | . . . Flight . | . . . Fastest Speed 50 | 50 80 130 Average Speed 104 | 78 95 131 Slowest Speed 175 | 80 140 175 Overloaded Moves . | . . . Propulsion Burnouts . | . . . Robots Hopped . | . . . Cave-ins Triggered . | . . . Exploration Rate (%) 34 | 3 81 18 Regions Visited 2 Branch Regions 1 Pre-discovered Areas . | . . . Known Exits Taken . | . . . Unknown Exits Taken 2 | 1 1 . Scrap Searched . | . . . Spaces Dug . | . . . Terrain Destroyed 4 | . 4 . Melee . | . . . Projectile . | . . . AOE 4 | . 4 . Terrain Rammed . | . . . Walls Destroyed . | . . . Machines Disabled . | . . . Actions | -11 -10 -10 --------- Run | Yrd Mat Sub Total 1127 | 61 892 174 Wait 527 | . 523 4 Move 527 | 53 326 148 Hop . | . . . Pick Up 6 | 2 4 . Fast Attach 8 | 6 1 1 Attach 3 | . 2 1 Detach . | . . . Swap 5 | . 4 1 Drop . | . . . Fire 44 | . 32 12 Melee . | . . . Ram 7 | . . 7 Kick . | . . . Crush . | . . . Escape Stasis . | . . . Rewire . | . . . Trap . | . . . Miscellaneous . | . . . Route ------- -11/Scrapyard -10/Materials (discovered 5 exits: [*Mat x2] / [*Min x2] / [*Sub]) -10/Subcaves (discovered 1 exit: [*Rec]) History --------- Turn | Location | Event 39 | -11/Scrapyard | Discovered new exit (range 15) 54 | -11/Scrapyard | Entered Materials 155 | -10/Materials | Discovered new exit (range 8) 257 | -10/Materials | Discovered new exit (range 15) 301 | -10/Materials | Build established: Mutant 307 | -10/Materials | Discovered new exit (range 8) 311 | -10/Materials | Discovered new exit (range 13) 967 | -10/Materials | Discovered new exit (range 7) 989 | -10/Materials | Entered Subcaves 1002 | -10/Subcaves | Learned 2 Materials zone layouts 1052 | -10/Subcaves | Discovered new exit (range 16) 1184 | -10/Subcaves | Shifting Twisted Machinery released Flamer 1191 | -10/Subcaves | Shifting Twisted Machinery released Mak. System Shield 1252 | -10/Subcaves | Core integrity fell below 50% 1264 | -10/Subcaves | Core integrity fell below 20% 1273 | -10/Subcaves | Destroyed by IO-HFV(R) with Subdweller Laser Last Messages --------------- 01065_ Lgt. Assault Rifle destroyed. 01066_ Flight Unit fries itself beyond repair. 01069_ S-10 Pest destroyed. 01071_ Lgt. Ion Engine fries itself beyond repair. 01072_ Lgt. Assault Rifle fries itself beyond repair. Flamer falls loose from the Twisted Machinery. Mak. System Shield falls loose from the Twisted Machinery. 01192_ Acquired Flamer. 01214_ Med. Laser destroyed. 01224_ Flamer destroyed. 01226_ Com. Wheel destroyed. 01226_ Slammed into IO-HFV(R). 01233_ Ion Engine destroyed. 01233_ Slammed into IO-HFV(R). 01235_ Com. Wheel broken. 01235_ Destabilizing: Short circuit. 01245_ Broken Com. Wheel destroyed. 01249_ Slammed into IO-HFV(R). 01261_ Imp. Heat Sink destroyed. 01262_ Slammed into IO-HFV(R). Map ----- +----------------------------------------------------+ | ?????????????????????????????????????????????????? | | ?????????????????????????????????????????????????? | | ?????????????????????????????????????????????????? | | ??????? ???????????????????????????????????????? | | ??????# ??????????????????????????????????????? | | ?????## #????????????????????????????????????? | | ????## ???????????????????????????????????? | | ????# ???????????????????????????????????? | | ???## ????????????????????????????????????? | | ???# ????????????????????????????????????? | | ???# #?????????????????????????????????????? | | ????# #??????????????????????????????????????? | | ?????# #???????????????????????????????????????? | | ????## ####??????????????#? ??????????????????? | | ##### ##????????????? !" ??????????????????? | | #????????????? " #??????????????????? | | ######???????? "##?????????????????? | | ####?????# ??????????????????? | | #?????# ##?????????????????? | | #????? ##????????????????? | | ## ### ##??### #????????????????? | | ####### #?## ####"" #????????????????? | | #?????###### ### # """""#?????????????????? | | #??????????# ## """#?????????????????? | | ##?????????? ##### R ""#?????????????????? | | ???????????? #???### #@# ###?????????????????? | | ???????????? ##?????##### #???????????????????? | | ???????????# #??????????## #???????????????????? | | ??????????? #??????????? #??????????????????? | | ??????????? ??????????? ##??????????????????? | | ??????????? ?????????? ##???????????????????? | | ??????????? ?????????? #????????????????????? | | ?????????? ? ????????? ????????????????????? | | ???????????? ????????? ????????????????????? | | ??????????????????????? ## ????????????????????? | | ??????????????????????? ?# ????????????????????? | | ??????????????????????"??## ????????????????????? | | ??????????????????????????? ????????????????????? | | ??????????????????????????? ????????????????????? | | ??????????????????????????? ????????????????????? | | ?????????????????????????????????????????????????? | | ?????????????????????????????????????????????????? | | ?????????????????????????????????????????????????? | | ?????????????????????????????????????????????????? | | ?????????????????????????????????????????????????? | | ?????????????????????????????????????????????????? | | ?????????????????????????????????????????????????? | | ?????????????????????????????????????????????????? | | ?????????????????????????????????????????????????? | | ?????????????????????????????????????????????????? | +----------------------------------------------------+ Best States ------------- Heat Dissipation 39 Energy Generation 10 Energy Capacity 250 Matter Stores 300 Matter Capacity 300 Sight Range 16 Terrain Scan Density 10 Evasion (%) 44 Item Schematics ----------------- None Robot Schematics ------------------ None Fabricated ------------ Nothing Alien Tech Used ----------------- None Achievements -------------- None Challenges ------------ None Game ------ Seed LightEnergyKinecellerator Manual? 0 Play Time 00:05:57 Cumulative 71.9 hours Start 2024.11.21 @ 01:04:15 End 2024.11.21 @ 01:08:59 Sessions 1 Manual Loads 0 Difficulty Rogue Special Mode None Game No. 138 Rogue 138 Adventurer 0 Explorer 0 Win Type - Total 1 Types 1/0/0/0/0/0/0/0/0 Lore% 57 Gallery% 56 Achievement% 48 Wizard Run 0 Options --------- Layout 0 ASCII 0 Keyboard 1 Movement Numpad Keybinds 0 Fullscreen 2 Font 24/Terminus Map View 76x50 Zoom Use 0% Tactical HUD 1 Map Filters NONE Filters NONE Steam 1 RUN: 37834cab-c0fc-4e9f-83a0-55565f7b0b0e